Cogmind - Beta 15 @@@ ROGUE MODE // 2025.10.21 @ 19:12:00 Player: Bikerider58 Result: Self-destructed Performance ------------- Evolutions (9) 4500 Regions Visited (30) 6000 Robots Destroyed (497) 2485 Value Destroyed (22148) 22148 Prototype IDs (73) 1460 Alien Tech Used (4) 800 Bonus (16421) 16421 TOTAL SCORE: 53814 Bonus ------- High Alert Combat Kills 4165 Follower Combat Kills 801 Entered DSFs 500 Aligned with FarCom 300 Met Zhirov 300 Built Enhanced Grunts 300 Met R17 at Cetus 500 Found Hidden Lab 3000 Used Core Reset Matrix 3000 Met R17 at Research 2000 Met MAIN.C 5000 Friendly Fire -3445 Cogmind --------- Core Integrity 781/1600 Matter 63/300 Energy 318/792 System Corruption 84% Temperature Cool (12) Movement Treading (151) Location -1/Command Parts ------- > --- POWER (4) -------- Reinforced Antimatter Reactor Reinforced Antimatter Reactor Quantum-Particle Reactor > --- PROPULSION (6) --- Treaded Armored-Biometal Exoskeleton > --- UTILITY (12) ----- Armored Scrap Engine Advanced Coolant Injector Huge Storage Unit Advanced Terrain Scan Processor Advanced Targeting Computer Graphene Brace Advanced Shield Generator Advanced Hacking Suite > --- WEAPON (4) ------- Warp Cannon > --- INVENTORY (25) --- IFF Parser Long-range Terrain Scanner Advanced ECM Suite Improved Remote Force Field Advanced Component Analysis Suite High-powered Tractor Beam Potential Cannon Long-range Missile Launcher Peak State ------------ > --- POWER ------------ Graviton Reactor Quantum-Particle Reactor > --- PROPULSION ------- Treaded Armored-Biometal Exoskeleton > --- UTILITY ---------- Armored Scrap Engine Advanced Cooling System Huge Storage Unit Advanced Terrain Scan Processor Advanced Targeting Computer Advanced Target Analyzer Centrium Medium Armor Plating Advanced Hardlight Generator Improved Force Field Advanced Hacking Suite Deep Network Scanner > --- WEAPON ----------- Helical Railgun Helical Railgun Helical Railgun Thermal Construct/G > --- INVENTORY -------- Light Quantum Reactor Advanced Heat Sink Advanced Coolant Injector IFF Parser Long-range Terrain Scanner Advanced ECM Suite Heavy Regenerative Plating Graphene Brace Advanced Shield Generator Improved Force Field Improved Remote Force Field Advanced Component Analysis Suite High-powered Tractor Beam Transdimensional Reconstructor Transdimensional Reconstructor Nova Cannon Nova Cannon YOLO Cannon Potential Cannon Warp Cannon Long-range Missile Launcher Improved Plasma Cutter [Rating: 216] Favorites ----------- Power Constructs Engine Cooled Ion Engine Reactor Constructs Propulsion Constructs Treads Constructs Leg Aluminum Leg Wheel Armored Wheel Flight Unit Improved Flight Unit Utility Huge Storage Unit Device Armored Scrap Engine Storage Huge Storage Unit Processor Advanced Targeting Computer Hackware Advanced Hacking Suite Protection Centrium Medium Armor Plating Weapon Constructs Energy Gun Constructs Energy Cannon Advanced Beam Cannon Ballistic Gun Helical Railgun Ballistic Cannon Enhanced Hardcell Cannon Launcher Improved Proton Missile Launcher Special Weapon Improved Plasma Cutter Impact Weapon Great Maul Slashing Weapon Centrium Greatsword Build | -11 -10 -10 -9 -9 -9 -8 -8 -8 -8 -6 -6 -6 -6 -5 -5 -5 -5 -4 -4 -4 -4 -4 -3 -3 -3 -3 -2 -2 -1 -1 ------- Run | Yrd Mat Min Mat Min Exi Min Mat Sto Rec Fac Ext Cet Arc Fac Upp Upp War Pro Fac Upp Upp Zhi Pro Res Arm Lab Res DSF Acc Com Slots Evolved 18 | . . . 2 . . . 2 . . 4 . . . 2 . . . . 2 . . . . 2 . . 2 . 2 . Power 2 | . . . . . . . . . . 1 . . . . . . . . 1 . . . . . . . . . . . Propulsion 4 | . . . 1 . . . 1 . . 1 . . . . . . . . . . . . . . . . 1 . . . Utility 10 | . . . 1 . . . . . . 2 . . . 2 . . . . 1 . . . . 1 . . 1 . 2 . Weapon 2 | . . . . . . . 1 . . . . . . . . . . . . . . . . 1 . . . . . . Parts Attached 203 | 6 12 5 18 . . 3 11 3 3 17 8 7 1 9 1 . . 1 10 2 2 . 2 9 17 5 1 16 11 23 Power 21 | 1 2 1 2 . . 1 . . . 2 . . . . . . . . 1 1 . . . 2 . 1 . . . 7 Engine 9 | 1 2 1 2 . . 1 . . . 1 . . . . . . . . . . . . . . . . . . . 1 Core . | . . . . . . . . . . . . . . . . . . . . . . . . . . . . . . . Reactor 12 | . . . . . . . . . . 1 . . . . . . . . 1 1 . . . 2 . 1 . . . 6 Propulsion 21 | 2 5 3 7 . . . 2 1 . . . . . . . . . . . . . . . . . . . 1 . . Treads 4 | . . . 3 . . . . 1 . . . . . . . . . . . . . . . . . . . . . . Leg 3 | 2 . . . . . . . . . . . . . . . . . . . . . . . . . . . 1 . . Wheel 13 | . 5 3 4 . . . 1 . . . . . . . . . . . . . . . . . . . . . . . Hover . | . . . . . . . . . . . . . . . . . . . . . . . . . . . . . . . Flight 1 | . . . . . . . 1 . . . . . . . . . . . . . . . . . . . . . . . Utility 103 | 1 3 1 4 . . 1 3 1 2 11 4 7 1 6 1 . . 1 6 1 2 . 1 7 7 . 1 14 11 6 Device 65 | 1 1 1 . . . 1 2 . 1 8 1 5 1 4 . . . 1 4 . 2 . 1 3 5 . . 10 9 4 Storage 5 | . 2 . . . . . . . 1 . . 1 . . . . . . 1 . . . . . . . . . . . Processor 16 | . . . 3 . . . 1 1 . 1 1 . . . 1 . . . . . . . . 2 . . 1 2 1 2 Hackware 6 | . . . . . . . . . . . . . . 2 . . . . 1 . . . . 2 . . . . 1 . Protection 11 | . . . 1 . . . . . . 2 2 1 . . . . . . . 1 . . . . 2 . . 2 . . Artifact . | . . . . . . . . . . . . . . . . . . . . . . . . . . . . . . . Weapon 58 | 2 2 . 5 . . 1 6 1 1 4 4 . . 3 . . . . 3 . . . 1 . 10 4 . 1 . 10 Energy Gun 11 | . 2 . 1 . . . 2 1 . . 1 . . . . . . . . . . . 1 . . . . . . 3 Energy Cannon 14 | . . . 1 . . 1 . . . 3 . . . 2 . . . . . . . . . . 3 1 . 1 . 2 Ballistic Gun 18 | 2 . . 1 . . . 2 . . . . . . . . . . . 1 . . . . . 5 2 . . . 5 Ballistic Cannon 2 | . . . . . . . . . . . . . . . . . . . . . . . . . 2 . . . . . Launcher 8 | . . . 2 . . . 1 . . 1 3 . . . . . . . 1 . . . . . . . . . . . Special Weapon 1 | . . . . . . . . . . . . . . . . . . . . . . . . . . 1 . . . . Impact Weapon 1 | . . . . . . . 1 . . . . . . . . . . . . . . . . . . . . . . . Slashing Weapon 3 | . . . . . . . . . 1 . . . . 1 . . . . 1 . . . . . . . . . . . Piercing Weapon . | . . . . . . . . . . . . . . . . . . . . . . . . . . . . . . . Special Melee Weapon . | . . . . . . . . . . . . . . . . . . . . . . . . . . . . . . . Unidentified Prototypes 30 | . . . 6 . . . 2 1 1 1 . 4 . 1 . . . . 1 . . 1 . 2 3 3 . 1 2 1 Corrupted Parts 1 | . . . . . . 1 . . . . . . . . . . . . . . . . . . . . . . . . System Corruption 3 | . . . . . . 3 . . . . . . . . . . . . . . . . . . . . . . . . Parts Lost 60 | . 6 3 3 . . 1 . . . 2 . . . . . . . . 3 1 1 . 1 1 4 . . 4 1 29 Power 7 | . . . 1 . . 1 . . . . . . . . . . . . . . . . . 1 . . . . . 4 Propulsion 6 | . 3 2 . . . . . . . . . . . . . . . . . . . . . . . . . . . 1 Utility 27 | . 1 1 2 . . . . . . 1 . . . . . . . . 2 1 1 . 1 . 2 . . 3 1 11 Weapon 20 | . 2 . . . . . . . . 1 . . . . . . . . 1 . . . . . 2 . . 1 . 13 Highest Loss Streak 12 | . 3 2 1 . . 1 . . . 1 . . . . . . . . 2 1 1 . 1 1 2 . . 4 1 12 To Critical Strikes 2 | . . . . . . . . . . . . . . . . . . . . . . . . . . . . . . 2 Average Backups 20 | . 14 24 24 25 24 23 23 24 16 19 23 22 21 21 22 22 22 21 21 20 20 22 22 21 20 20 20 17 19 20 Power 1 | . 2 5 3 2 2 1 1 1 . . 2 1 1 1 1 1 1 1 1 1 1 1 2 1 1 . . . . 1 Propulsion 2 | . 4 7 7 8 8 8 10 10 5 1 2 2 2 2 2 2 2 2 2 2 2 1 1 1 1 . . . . . Utility 9 | . 2 3 5 7 6 7 5 3 3 10 12 12 12 12 12 12 12 11 11 11 11 12 13 11 9 12 12 10 10 10 Weapon 6 | . 5 7 8 8 7 7 7 9 6 6 5 6 6 5 6 6 6 5 5 4 5 5 4 5 6 6 5 4 6 6 Tool/Special . | . . . . . . . . . . . . . . . . . . . . . . . . . . . . . . . Unused Backups 106 | . 1 3 18 3 3 2 12 . 16 11 13 9 1 1 1 . . 1 . . . 2 1 2 3 2 . . . 1 Power 19 | . 1 . 5 . . . 1 . 1 . 9 1 . . . . . . . . . . . . . 1 . . . . Propulsion 30 | . . . 7 2 . . 4 . 10 . 2 3 . . . . . . . . . 1 . . . 1 . . . . Utility 19 | . . . . 1 1 2 2 . 1 . 1 5 1 1 1 . . . . . . . 1 1 . . . . . 1 Weapon 38 | . . 3 6 . 2 . 5 . 4 11 1 . . . . . . 1 . . . 1 . 1 3 . . . . . Tool/Special . | . . . . . . . . . . . . . . . . . . . . . . . . . . . . . . . Average Slot Usage (%) 65 | . 97 97 98 100 89 100 98 100 64 54 49 46 45 53 58 58 58 57 61 63 61 61 62 62 62 55 62 61 68 67 Engine 3 | . 14 14 10 11 11 11 9 9 8 4 . . . . . . . 4 3 . . . . . . . . . . . Core 1 | . . . . . . . . . . 2 6 6 6 5 5 5 5 . . . 2 5 5 1 . . . . . . Reactor 2 | . . . . . . . . . . . . . . . . . . . 6 10 5 5 5 4 4 5 8 8 7 10 Treads 3 | . . . 11 11 11 11 9 9 3 . . . . 2 5 5 5 4 3 5 5 5 5 1 3 4 4 3 3 3 Leg 1 | . 2 . . . . . . . 4 . . 2 6 2 . . . . . . . . . 2 . . . . . . Wheel 5 | . 24 25 22 22 22 22 26 27 8 2 . . . . . . . . . . . . . . . . . . . . Device 13 | . 13 14 11 11 11 11 9 9 8 13 13 13 12 11 13 17 17 11 14 15 14 14 19 10 18 16 16 14 14 15 Storage 6 | . 13 14 11 11 11 11 9 9 9 6 6 6 6 5 5 5 5 5 5 5 5 5 5 4 4 4 4 4 3 3 Processor 5 | . . . 7 11 11 11 9 9 1 . . 6 6 5 6 11 11 11 5 5 5 5 5 8 4 4 7 8 11 10 Hackware 2 | . . . . . . . . . . . . . . 6 4 . . . 4 5 5 5 1 8 4 4 4 4 6 4 Protection 2 | . . . 2 . . . . . . 4 5 . . 2 3 . . 4 5 5 5 5 5 4 4 2 4 2 2 2 Energy Gun 2 | . 1 28 14 11 5 1 3 7 9 2 . . . . . . . . . . . 1 5 3 . . . . . 2 Energy Cannon 3 | . . . 6 11 5 17 18 18 4 6 3 6 6 7 5 5 5 . 1 . . . . . 1 . 2 1 . 1 Ballistic Gun 4 | . 26 . . . . . 2 1 3 . . . . . . . . . . 5 5 3 . 1 10 10 9 10 11 8 Ballistic Cannon 1 | . . . . . . . . . . . 2 . . . . . . 6 5 . . . . 1 2 . . 1 3 . Peak Build Rating 216 | 6 10 13 24 24 26 26 34 34 51 87 90 96 93 115 113 109 109 119 146 146 146 147 146 164 184 187 191 194 215 216 Average Rating 108 | 4 8 11 20 24 21 25 32 33 43 67 85 89 91 107 111 109 109 115 137 144 143 143 144 156 171 160 184 181 212 200 On Entrance 96 | . 6 10 13 24 24 26 26 33 33 46 87 85 91 91 113 109 109 109 119 146 145 146 146 145 150 179 179 183 190 213 Naked Turns . | . . . . . . . . . . . . . . . . . . . . . . . . . . . . . . . Heaviest Build 218 | 6 90 92 99 96 96 99 102 101 100 119 122 121 119 131 125 120 120 133 176 161 158 156 154 158 192 193 191 213 211 218 Greatest Support 235 | 20 26 26 24 24 24 24 36 36 65 141 114 120 120 172 172 172 172 198 198 187 187 187 187 214 214 144 144 226 235 226 Greatest Overweight (x) 9 | . 8 9 4 3 3 4 4 2 7 2 1 1 . 1 . . . . 2 . . . . . 1 1 1 1 . 1 Average Overweight (x) . | . 2 3 3 3 3 3 2 2 2 . . . . . . . . . 1 . . . . . . . 1 . . . Largest Inventory Capacity 25 | 5 25 25 25 25 25 25 25 25 25 25 25 25 25 25 25 25 25 25 25 25 25 25 25 25 25 25 25 25 25 25 Average Capacity 24 | 5 23 25 25 25 25 25 25 25 24 25 25 25 25 25 25 25 25 25 25 25 25 25 25 25 25 25 25 25 25 25 Most Carried 25 | 3 25 25 25 25 25 25 25 25 25 25 25 25 25 25 25 25 25 25 25 25 24 25 25 25 25 25 24 23 24 25 Average Carried 22 | . 14 24 24 25 24 24 24 24 17 20 24 24 24 24 24 25 25 24 24 23 23 24 24 23 23 22 23 20 22 22 Final Capacity 25 | 5 25 25 25 25 25 25 25 25 25 25 25 25 25 25 25 25 25 25 25 25 25 25 25 25 25 25 25 25 25 25 Final Carried 25 | 3 25 25 25 25 25 25 25 25 9 23 25 25 25 25 25 25 25 25 24 23 24 24 25 25 25 25 23 22 24 9 Scrap Engine Consumption 317 | . . . . . . . . . 66 65 23 9 . 9 . . . 7 17 1 4 4 3 40 34 4 2 14 3 12 Constructs Created 10 | . . . . . . . . . 4 . . . . . . . . 1 . . . . . 2 2 . . 1 . . Constructs Modified 126 | . . . . . . . . . 24 28 5 7 . 3 . . . 4 10 . 1 2 1 13 13 . 3 5 . 7 Class Distribution -------------------- 49% | Construct 11% | Mutant 8% | Commander-Construct 6% | Skirmisher 4% | Generator-Skirmisher 4% | Generator-Tank 4% | Hacker-Construct Dominant Class ---------------- Mutant | -10/Materials Scavenger-Mutant | -10/Mines Mutant | -9/Materials Mutant | -9/Mines Mutant | -9/Exiles Mutant | -8/Mines Skirmisher | -8/Materials Skirmisher | -8/Storage Construct | -8/Recycling Construct | -6/Factory Construct | -6/Extension Commander-Construct | -6/Cetus Commander-Construct | -6/Archives Construct | -5/Factory Construct | -5/Upper Caves Construct | -5/Upper Caves Construct | -5/Warlord Construct | -4/Proximity Caves Construct | -4/Factory Construct | -4/Upper Caves Construct | -4/Upper Caves Construct | -4/Zhirov Construct | -3/Proximity Caves Hacker-Construct | -3/Research Construct | -3/Armory Generator-Construct | -3/Lab Generator-Tank | -2/Research Generator-Tank | -2/DSF Generator-Skirmisher | -1/Access Hacker-Gunner | -1/Command Resources | -11 -10 -10 -9 -9 -9 -8 -8 -8 -8 -6 -6 -6 -6 -5 -5 -5 -5 -4 -4 -4 -4 -4 -3 -3 -3 -3 -2 -2 -1 -1 ----------- Run | Yrd Mat Min Mat Min Exi Min Mat Sto Rec Fac Ext Cet Arc Fac Upp Upp War Pro Fac Upp Upp Zhi Pro Res Arm Lab Res DSF Acc Com Matter Collected 10147 | 286 261 45 333 . 36 65 171 65 181 283 417 157 20 120 100 5 . 93 327 112 79 51 69 322 1897 86 . 1058 1112 2396 Remotely 3760 | . . . . . . . . . . . . . . . . . . . . . . . . . 929 . . 755 684 1392 Salvage Created 27339 | 127 707 286 1125 91 . 399 524 618 2035 1807 3257 619 542 872 399 99 . 879 1735 140 79 440 518 754 2202 86 . 1868 1517 3614 Parts 1167 | 15 55 13 68 7 . 24 34 25 60 68 128 18 8 46 8 9 . 18 85 17 2 4 17 29 119 4 . 53 77 156 Haulers Intercepted 21 | . 2 . 2 . . . 4 3 1 4 1 . . 2 . . . . . . . . . . . . . . 2 . Recyclers Shooed 10 | . 1 . . . . 2 1 . 3 . 2 . . . . . . . . . . . . . . . . . 1 . Parts Field Recycled . | . . . . . . . . . . . . . . . . . . . . . . . . . . . . . . . Retrieved Matter . | . . . . . . . . . . . . . . . . . . . . . . . . . . . . . . . Parts Self-Destructed 57 | . . . . . . . . . . . . . . . 7 9 . 13 . 14 1 1 12 . . . . . . . Prevented 4 | . . . . . . . . . . . . . . . . . . 4 . . . . . . . . . . . . Kills | -11 -10 -10 -9 -9 -9 -8 -8 -8 -8 -6 -6 -6 -6 -5 -5 -5 -5 -4 -4 -4 -4 -4 -3 -3 -3 -3 -2 -2 -1 -1 ------- Run | Yrd Mat Min Mat Min Exi Min Mat Sto Rec Fac Ext Cet Arc Fac Upp Upp War Pro Fac Upp Upp Zhi Pro Res Arm Lab Res DSF Acc Com Combat Hostiles Destroyed 358 | . 13 4 24 2 . 3 9 8 10 19 44 7 2 17 5 4 . 13 27 9 1 . 7 9 35 1 . 15 16 54 Melee 14 | . . . . . . . . . . 1 . . . . . . . . . . 1 . 7 3 1 . . . . 1 Guns 110 | . 13 4 8 . . . . 4 4 8 . . . . . . . . 2 3 . . . 1 17 . . 2 11 33 Cannons 141 | . . . 5 2 . 1 6 4 5 7 31 4 . 12 5 4 . 9 19 . . . . . 8 . . 6 5 8 AOE 68 | . . . 11 . . 2 3 . . 3 8 . . 5 . . . 3 6 6 . . . 4 8 . . 5 . 4 Classes Destroyed 22 | 2 5 1 2 1 . . . 1 1 1 5 . . 1 . . . . . . . . . . 2 . . . . . Worker 28 | . 7 . 1 . . . . 2 . 5 2 . . . . . . . 2 . . . . 3 . . . . 1 5 Builder 20 | . . . 2 . . 2 . . 2 2 4 . . . . . . . 6 . . . . . . . . . 2 . Tunneler 11 | 4 1 1 1 . . 2 . . 1 1 . . . . . . . . . . . . . . . . . . . . Hauler 21 | . 2 . 2 . . . 4 3 1 4 1 . . 2 . . . . . . . . . . . . . . 2 . Recycler 27 | 1 1 . . . . 2 . . 13 3 2 . . . . . . . 2 . . . . 2 . . . . 1 . Mechanic 4 | . . . . . . . . . . . 1 . . . . . . . 1 . . . . . 1 . . . . 1 Operator 11 | . . . . . . . . . . . 1 . 9 . . . . . . . . . . 1 . . . . . . Watcher 9 | . 1 . 1 . . . 1 . . 1 2 . . 1 . . . . . . . . . . 1 . . . 1 . Swarmer 97 | . 6 . 9 . . . 4 . 1 9 6 . . 9 1 4 . 4 9 9 . . . 4 9 . . 4 . 9 Saboteur 2 | . . . . . . . . . . . . . . . . . . . . . . . . . 1 . . . . 1 Grunt 104 | . 7 2 11 1 . 3 3 4 . 3 22 . . 4 2 . . 6 6 . . . 7 1 8 . . 4 1 9 Brawler 7 | . . . . 1 . . . . . . 2 . . . . . . . . . . . . . . . . . . 4 Duelist 9 | . . . 1 . . . . . 1 . 3 . . . . . . 2 . . . . . . 1 . . . . 1 Protector 1 | . . . . . . . . . . . 1 . . . . . . . . . . . . . . . . . . . Sentry 42 | . . 2 3 . . . 2 3 3 4 4 . 2 1 1 . . 1 5 . 1 . . 3 1 . . . 3 3 Demolisher 1 | . . . . . . . . . . . 1 . . . . . . . . . . . . . . . . . . . Specialist 5 | . . . . . . . . . . . . . . . . . . . . . . . . . 2 . . 3 . . Hunter 20 | . . . . . . . . 1 2 . 3 . . . . . . . 3 . . . . . 2 . . 2 3 4 Programmer 48 | . . . . . . . . . . 3 . . . 2 . . . . 4 . . . . 1 9 . . . 9 20 Heavy 3 | . . . . . . . . . . . . . . 1 . . . . . . . . . . . . . 2 . . Behemoth 2 | . . . . . . . . . . . 2 . . . . . . . . . . . . . . . . . . . Armor Guard 2 | . . . . . . . . . . . . . . . . . . . . . . . . . 2 . . . . . Cetus Guard 7 | . . . . . . . . . . . . 7 . . . . . . . . . . . . . . . . . . M Guard 2 | . . . . . . . . . . . . . . . . . . . . . . . . . . . . . . 2 Combat Programmer 1 | . . . . . . . . . . . . . . . . . . . . . . . . . . . . . . 1 Scrapper 3 | . . . . . . . . . 3 . . . . . . . . . . . . . . . . . . . . . Packrat 1 | . . . . . . . . . . . . . . . 1 . . . . . . . . . . . . . . . Thug 4 | . . . . . . . . . . . 3 . 1 . . . . . . . . . . . . . . . . . Butcher 3 | . . . . . . . . . . . 1 1 . . 1 . . . . . . . . . . . . . . . Guerrilla 1 | . . . . . . . . . . . 1 . . . . . . . . . . . . . . . . . . . Best Kill Streak 14 | 4 3 2 14 2 . 9 3 4 5 7 11 4 6 6 3 4 . 7 10 5 1 . 3 7 6 1 . 6 6 11 Combat Bots Only 11 | . 3 2 8 2 . 3 3 1 3 4 7 4 2 5 3 4 . 7 6 5 1 . 3 4 6 1 . 6 4 11 Max Kills in Single Turn 8 | 1 1 1 3 1 . 6 2 1 1 4 3 2 2 4 1 1 . 2 8 4 1 . 1 4 4 1 . 3 2 2 Gunslinging . | . . . . . . . . . . . . . . . . . . . . . . . . . . . . . . . Exploded 6 | . . . 3 . . 1 2 . . 1 3 . . 4 . . . 2 6 4 . . . 3 4 . . 3 . 1 Melee 1 | . . . . . . . . . . 1 . . . . . . . . . . 1 . 1 1 1 . . . . 1 Uniques/NPCs Destroyed 2 | . . . . . . . . . . . . 1 . . . . . . . . . . . . . 1 . . . . A7 (-6/Cetus) A5 (-3/Lab) Combat | -11 -10 -10 -9 -9 -9 -8 -8 -8 -8 -6 -6 -6 -6 -5 -5 -5 -5 -4 -4 -4 -4 -4 -3 -3 -3 -3 -2 -2 -1 -1 -------- Run | Yrd Mat Min Mat Min Exi Min Mat Sto Rec Fac Ext Cet Arc Fac Upp Upp War Pro Fac Upp Upp Zhi Pro Res Arm Lab Res DSF Acc Com Hostile Shots Fired 2363 | . 59 16 60 1 . 4 22 20 16 172 174 13 6 50 10 8 . 50 271 72 13 . 76 55 359 22 . 105 92 617 Missed 746 | . 13 4 18 . . . 6 3 3 74 66 5 4 18 4 4 . 24 100 25 2 . 12 23 106 5 . 29 35 163 Hits 1617 | . 46 12 42 1 . 4 16 17 13 98 108 8 2 32 6 4 . 26 171 47 11 . 64 32 253 17 . 76 57 454 Melee 17 | . . . 1 . . . . . . . . . . . . . . . . . . . 2 . 1 . . . . 13 Projectile 1600 | . 46 12 41 1 . 4 16 17 13 98 108 8 2 32 6 4 . 26 171 47 11 . 62 32 252 17 . 76 57 441 AOE 20 | . . . . . . . . . . . 2 . . . . . . . . . . . . . . . . . . 18 Critical Strikes 76 | . . 1 . . . 1 1 1 . 1 . . 1 1 . . . . 1 2 1 . 9 . 7 2 . 5 4 38 Actively Blocked 19 | . . . . . . . . . . . . . . . . . . . . . . . . . . . . . . 19 Part Disruptions 12 | . . . . . . . . . . . . . . . . . . . . . . . . . . . . . . 12 Damage Taken 26374 | . 514 170 625 11 . 136 220 300 233 1491 1500 114 37 845 120 61 . 478 1871 439 127 . 752 606 3105 223 . 1673 756 9967 Core 1885 | . 107 25 73 . . 23 47 27 25 209 173 43 . 28 37 . . 35 70 38 24 . 17 92 129 . . 29 38 596 Absorbed by Shields 11347 | . . . . . . . . . . 24 168 117 8 256 . . . . 1251 422 132 . 618 289 2356 214 . 942 588 3962 Reduced by Siege Mode 330 | . . . . . . . . . . . . . . . . . . . . . . . . . 200 7 . 123 . . Ignored by Resistances 617 | . . . . . . . . . . . . . . . . . . . . . . . . . 617 . . . . . Regen/Repaired (Parts) 9514 | . . . . . . . . . 10 503 631 779 . 553 . . . 365 1010 . 220 452 135 354 812 . 115 971 39 2565 Core Remaining (%) 79 | 100 . 47 . . . 76 . . 82 . . . 50 . . . . 90 . . . . 87 . . 83 . 98 . . Volleys Fired 1235 | 13 88 14 56 2 . 8 25 24 72 90 124 24 33 44 22 5 . 28 75 6 5 . 4 20 99 25 3 45 52 229 Largest 4 | 2 2 2 2 2 . 2 3 3 3 2 2 1 1 1 1 1 . 2 3 2 1 . 1 2 4 4 1 4 4 4 Hottest 304 | 40 100 100 124 124 . 136 197 197 197 132 157 61 61 98 87 87 . 112 154 86 37 . 37 127 185 135 51 178 178 304 Shots Fired 2315 | 26 174 28 102 4 . 11 66 70 147 129 130 24 33 44 22 5 . 31 87 7 5 . 4 27 268 34 3 95 166 573 Gun 1384 | 26 174 28 70 2 . . 18 23 109 53 1 . . . . . . . 10 5 5 . 4 17 176 21 . 72 114 456 Cannon 854 | . . . 22 2 . 6 46 47 38 71 100 24 33 42 22 5 . 28 75 . . . . 5 86 13 3 21 52 113 Launcher 77 | . . . 10 . . 5 2 . . 5 29 . . 2 . . . 3 2 2 . . . 5 6 . . 2 . 4 Special . | . . . . . . . . . . . . . . . . . . . . . . . . . . . . . . . Kinetic 1099 | 26 166 . . . . . 12 . 23 10 68 . . . . . . 2 44 5 5 . . 8 234 21 3 80 114 278 Thermal 1092 | . 8 28 92 4 . 6 50 70 124 98 33 24 33 42 22 5 . 13 37 . . . 4 5 25 13 . 13 52 291 Explosive 37 | . . . . . . . 2 . . . 9 . . 2 . . . 3 2 2 . . . 5 6 . . 2 . 4 Electromagnetic 87 | . . . 10 . . 5 2 . . 21 20 . . . . . . 13 4 . . . . 9 3 . . . . . Robot Hit Streak 32 | 6 12 11 21 8 . 9 9 9 31 14 18 28 8 10 13 5 . 13 24 7 5 . 4 10 32 22 . 26 13 17 Robot Miss Streak 6 | 3 3 2 3 . . 1 3 2 2 3 6 3 4 6 2 4 . 3 4 1 1 . . 2 3 1 . 2 5 5 Penetration Max 2 | . . . . . . . . . . . 2 . . . . . . . 1 . . . . . 1 . . 2 1 2 Secondary Targets 10 | . . . . . . . . . . . . . . . . . . . . . . . . . 2 . . 1 . 7 Max Gunslinging Chain 1 | . . . . . . . . . . . . . . . . . . . . . . . . . 1 . . 1 . 1 Shots Hit Robots 1566 | 17 115 21 70 4 . 3 34 41 111 86 104 24 33 26 11 5 . 28 52 6 3 11 27 36 183 24 . 52 89 350 Core Hits 970 | 9 55 11 40 3 . 14 24 17 50 55 132 28 32 39 13 4 . 32 55 10 1 5 9 22 84 9 . 32 48 137 Critical Kills 26 | . . . . . . . . 1 1 1 . . . . . . . . . . . . . . 4 1 . 2 4 12 Critical Parts Destroyed 26 | . . . . . . . . . . . . . . . . . . . . . . . . 1 5 . . 2 4 14 Critical Strikes 83 | . . 2 3 . . . 1 4 8 1 1 . . . . . . . 2 . . . 2 5 12 1 . 4 8 29 Burn 17 | . . 2 3 . . . 1 3 7 . . . . . . . . . . . . . . . . . . . . 1 Meltdown 16 | . . . . . . . . 1 1 1 . . . . . . . . . . . . . . 1 1 . 2 1 8 Destroy 40 | . . . . . . . . . . . . . . . . . . . . . . . . 1 10 . . 2 7 20 Blast 3 | . . . . . . . . . . . . . . . . . . . 2 . . . . . 1 . . . . . Sever 7 | . . . . . . . . . . . 1 . . . . . . . . . . . 2 4 . . . . . . Melee Attacks 99 | . . . . . . . 3 . 1 15 6 . . . . . . . . 3 5 11 30 25 . . . . . . Impact 3 | . . . . . . . 3 . . . . . . . . . . . . . . . . . . . . . . . Slashing 96 | . . . . . . . . . 1 15 6 . . . . . . . . 3 5 11 30 25 . . . . . . Piercing . | . . . . . . . . . . . . . . . . . . . . . . . . . . . . . . . Sneak Attacks 9 | . . . . . . . . . 1 4 . . . . . . . . . . . . . 4 . . . . . . Combat Hostiles . | . . . . . . . . . . . . . . . . . . . . . . . . . . . . . . . Follow-up Attacks . | . . . . . . . . . . . . . . . . . . . . . . . . . . . . . . . Damage Inflicted 70907 | 145 968 267 1812 75 . 555 924 885 2106 3265 8631 1978 1860 2484 923 184 . 2210 5009 709 168 1562 1641 3365 6477 697 . 3227 3400 15380 Guns 22120 | 145 965 267 750 34 . . 198 246 1565 988 . . . . . . . . 287 115 29 . 102 373 3538 264 . 1216 2101 8937 Cannons 31223 | . . . 329 41 . 62 467 639 473 1243 6759 1978 1860 1872 923 184 . 1910 3461 . . . . 62 2031 433 . 1017 1282 4197 Explosions 12151 | . . . 731 . . 493 252 . . 690 1781 . . 612 . . . 300 1182 527 . . . 1522 896 . . 994 . 2171 Melee 5218 | . . . . . . . . . 68 344 91 . . . . . . . . 67 139 1562 1539 1408 . . . . . . Ramming 195 | . 3 . 2 . . . 7 . . . . . . . . . . . 79 . . . . . 12 . . . 17 75 Kinetic 22921 | 145 901 . . . . . 105 . 373 163 4021 . . . . . . 39 2851 115 29 . . 140 5160 264 . 1457 2101 5057 Thermal 31200 | . 64 267 1201 75 . 132 518 885 1665 2142 2738 1978 1860 1872 923 184 . 1035 494 . . . 102 96 378 433 . 1279 1282 9597 Explosive 7690 | . . . . . . . 252 . . . 1257 . . 612 . . . 300 1182 527 . . . 1522 896 . . 491 . 651 Electromagnetic 3683 | . . . 609 . . 423 42 . . 616 524 . . . . . . 836 403 . . . . 199 31 . . . . . Impact . | . . . . . . . . . . . . . . . . . . . . . . . . . . . . . . . Slashing 5218 | . . . . . . . . . 68 344 91 . . . . . . . . 67 139 1562 1539 1408 . . . . . . Piercing . | . . . . . . . . . . . . . . . . . . . . . . . . . . . . . . . Highest Corruption 82 | . . . 1 1 1 4 1 2 2 2 6 6 6 1 1 1 1 1 6 6 6 6 6 1 9 9 . 7 8 82 Average Corruption 6 | . . . 1 1 1 1 1 1 2 1 5 6 4 1 1 1 1 1 4 6 6 6 6 1 4 5 . 5 5 32 Corruption Purged 6 | . . . . . . . . . . . . . 6 . . . . . . . . . . . . . . . . . Corruption Blocked . | . . . . . . . . . . . . . . . . . . . . . . . . . . . . . . . Effects 454 | . . . 4 1 . . 3 7 35 16 37 14 3 . 1 5 1 1 39 6 12 10 12 5 39 6 . 12 18 167 Message Errors 89 | . . . . . . . . . 9 4 6 5 . . . 3 . . 9 1 4 1 2 1 9 1 . 1 6 27 Matter Fused 87 | . . . 2 1 . . . 2 6 3 7 2 . . . 1 . 1 8 1 4 1 5 2 9 1 . 2 4 25 Heat Flow Errors 54 | . . . 1 . . . 1 1 6 3 5 1 . . 1 . . . 7 . . 1 . . 7 1 . 2 2 15 Energy Discharges 47 | . . . . . . . . 2 5 1 9 2 1 . . 1 1 . 5 . 1 4 2 1 3 . . 2 1 6 Parts Rejected 9 | . . . . . . . . . . . 1 . . . . . . . . 1 . . . . 1 . . . 1 5 Parts Fused 5 | . . . . . . . . 1 . 1 . . . . . . . . . . 1 . . . 1 . . . . 1 Data Loss (minor) 58 | . . . . . . . . 1 7 3 5 4 1 . . . . . 6 2 1 2 2 1 4 1 . 2 3 13 Data Loss (major) 26 | . . . . . . . . . . 1 2 . 1 . . . . . 3 1 1 . 1 . 2 1 . 2 1 10 Misfires 8 | . . . . . . . 1 . 2 . . . . . . . . . . . . . . . 2 . . . . 3 Alerts 7 | . . . 1 . . . . . . . . . . . . . . . 1 . . 1 . . 1 1 . . . 2 Misdirections 1 | . . . . . . . . . . . . . . . . . . . . . . . . . . . . . . 1 Weapon Failures 63 | . . . . . . . 1 . . . 2 . . . . . . . . . . . . . . . . 1 . 59 Overload Shots . | . . . . . . . . . . . . . . . . . . . . . . . . . . . . . . . Overflow Damage 2448 | . . . 53 . . 2 37 . 28 60 133 . 28 73 41 15 . 92 394 42 . 329 96 607 11 . . 55 11 341 Projectiles 741 | . . . 18 . . . . . . . 44 . 28 19 41 15 . 92 230 . . . . 1 11 . . 38 11 193 Explosions 695 | . . . 35 . . 2 37 . . 35 89 . . 54 . . . . 114 . . . . 167 . . . 17 . 145 Melee 1012 | . . . . . . . . . 28 25 . . . . . . . . 50 42 . 329 96 439 . . . . . 3 Knockbacks 68 | . . . . . . . . . . 2 29 . . . . . . . 21 . . . . 1 14 . . 1 . . Impact 1 | . . . . . . . . . . . . . . . . . . . 1 . . . . . . . . . . . Kinetic 59 | . . . . . . . . . . 2 27 . . . . . . . 17 . . . . 1 11 . . 1 . . Secondary 8 | . . . . . . . . . . . 2 . . . . . . . 3 . . . . . 3 . . . . . Self-Inflicted Damage 642 | . . . 141 . . 60 3 . . 70 8 . . . . . . . 1 62 . . . . 151 . . . . 146 Shots 22 | . . . 8 . . 2 . . . 2 2 . . . . . . . 1 1 . . . . 3 . . . . 3 Rammed 9 | . . . 1 . . . 1 . . . . . . . . . . . . . . . . . 3 . . . 2 2 Targets Rammed 13 | . 1 . 1 . . . 1 . . . . . . . . . . . 2 . . . . . 3 . . . 3 2 Kicked 3 | . 1 . . . . . . . . . . . . . . . . . 2 . . . . . . . . . . . Crushed 1 | . . . . . . . . . . . . . . . . . . . . . . . . . . . . . 1 . Highest Temperature 510 | . 24 84 222 18 . 90 147 247 207 314 305 510 349 302 277 . . 9 271 . 48 154 . 57 286 72 . 310 195 310 Average Temperature 77 | . 8 39 20 11 . 45 44 76 59 65 75 129 154 80 101 . . 6 76 . 12 22 . 25 91 51 . 145 107 77 Received Heat Transfer 2903 | . 249 84 177 6 . 54 63 90 66 222 280 . . 79 36 . . 63 119 22 20 . 280 49 469 . . 75 24 376 Effects 8 | . . . . . . . . . . . 1 3 2 . . . . . . . . . . . 2 . . . . . Shutdowns 1 | . . . . . . . . . . . . 1 . . . . . . . . . . . . . . . . . . Energy Bleed 2 | . . . . . . . . . . . . 1 1 . . . . . . . . . . . . . . . . . Interference 4 | . . . . . . . . . . . 1 . 1 . . . . . . . . . . . 2 . . . . . Damage (major) 1 | . . . . . . . . . . . . 1 . . . . . . . . . . . . . . . . . . Siege Activations 8 | . . . . . . . . . . . . . . . . . . . . . . . . . 4 1 . 3 . . Total Turns 169 | . . . . . . . . . . . . . . . . . . . . . . . . . 93 8 . 68 . . Longest Duration 56 | . . . . . . . . . . . . . . . . . . . . . . . . . 56 8 . 36 . . Martial Activations . | . . . . . . . . . . . . . . . . . . . . . . . . . . . . . . . Shielding Activations . | . . . . . . . . . . . . . . . . . . . . . . . . . . . . . . . Robots Disrupted 1 | . . . . . . 1 . . . . . . . . . . . . . . . . . . . . . . . . Combat Hostiles 1 | . . . . . . 1 . . . . . . . . . . . . . . . . . . . . . . . . Robots Corrupted 5 | . . . . . . . . . . . 1 . . . . . . 1 1 . . . . 1 1 . . . . . Combat Hostiles 2 | . . . . . . . . . . . . . . . . . . 1 . . . . . 1 . . . . . . Parts Fried 22 | . . . 3 . . 1 . . . . 5 . . . . . . 4 5 . . . . 2 2 . . . . . Impact Corruptions 4 | . . . . . . . . . . . . . . . . . . . 2 . . . . . 1 . . . . 1 Robots Melted 31 | . . . 1 . . . . 1 1 1 5 3 3 1 . . . . . . . . . . 1 1 . 4 1 8 Combat Hostiles 23 | . . . . . . . . . 1 . 5 3 2 . . . . . . . . . . . 1 1 . 2 . 8 Parts Melted 144 | . . 4 9 . . . . 10 13 6 19 7 21 14 2 . . 4 2 . . . . 1 2 6 . 3 2 19 Heat Transferred 43513 | . 185 925 2901 148 . 211 999 1776 4266 3014 6225 3779 4200 3250 975 225 . 1175 485 . . . 148 148 339 444 . 1182 . 6513 Parts Sabotaged 3 | . . . . . . . . . . . . . . . . . . . . . . . . . 2 . . . . 1 Parts Stolen . | . . . . . . . . . . . . . . . . . . . . . . . . . . . . . . . Parts Stripped . | . . . . . . . . . . . . . . . . . . . . . . . . . . . . . . . Power Chain Reactions 17 | . . . 5 . . 2 . . . 4 6 . . . . . . . . . . . . . . . . . . . Alert | -11 -10 -10 -9 -9 -9 -8 -8 -8 -8 -6 -6 -6 -6 -5 -5 -5 -5 -4 -4 -4 -4 -4 -3 -3 -3 -3 -2 -2 -1 -1 ------- Run | Yrd Mat Min Mat Min Exi Min Mat Sto Rec Fac Ext Cet Arc Fac Upp Upp War Pro Fac Upp Upp Zhi Pro Res Arm Lab Res DSF Acc Com Maximum Alert Level 5 | . . . 2 . . . . . . 2 5 3 2 4 . . . . 2 . . . . . 3 . . 2 1 4 Low Security (%) 48 | 100 100 100 28 100 . 100 100 100 100 . 8 . 10 22 . . . . 75 . . . . 100 1 . 100 44 71 12 Level 1 20 | . . . 70 . . . . . . 61 41 . 46 3 . . . . 8 . . . . . 44 . . 13 28 3 Level 2 15 | . . . 1 . . . . . . 38 11 . 43 5 . . . . 16 . . . . . 38 . . 42 . 27 Level 3 9 | . . . . . . . . . . . 27 100 . 34 . . . . . . . . . . 16 . . . . 25 Level 4 5 | . . . . . . . . . . . 7 . . 33 . . . . . . . . . . . . . . . 30 Level 5 . | . . . . . . . . . . . 3 . . . . . . . . . . . . . . . . . . . High Security . | . . . . . . . . . . . . . . . . . . . . . . . . . . . . . . . Max Security . | . . . . . . . . . . . . . . . . . . . . . . . . . . . . . . . Sterilizations 1 | . . . . . . . . . . . . . . . . . . . . . . . . . . . . 1 . . Peak Influence 1676 | 10 103 40 404 188 . 117 130 67 66 484 1676 1073 637 1168 . . . . 662 . . . . 152 727 . 6 462 276 1319 Initial 934 | . . 7 . 138 . . 37 22 20 307 199 934 372 58 . . . . 26 . . . . . . . . . 276 138 Average 323 | 2 49 13 244 163 . 80 66 32 15 360 603 1001 382 807 . . . . 146 . . . . 57 495 . . 244 126 755 Influence Increases 14466 | 25 512 100 715 50 . 137 395 257 358 998 2136 274 345 1456 105 90 . 295 1011 200 20 15 165 401 1327 . 9 502 535 2033 Destroy 0b10 Robot/C 7440 | . 260 80 480 40 . 60 180 160 140 380 1040 160 80 480 100 80 . 260 540 180 20 . 140 180 700 . . 300 320 1080 Destroy 0b10 Robot/NC 795 | 25 60 10 35 . . 30 25 25 115 80 70 10 45 50 5 . . 5 55 . . 15 . 30 10 . . 20 35 40 Destroy Leader 1306 | . 66 10 106 10 . 10 60 46 . 68 144 . . 88 . 10 . 30 120 20 . . 10 40 112 . . 50 96 210 Allied During Kill 1197 | . . . . . . . . . . . 553 86 125 433 . . . . . . . . . . . . . . . . Successful Hack 199 | . 5 . 2 . . . 22 9 12 28 36 . . 38 . . . . 6 . . . . 21 5 . . . . 15 Select Force Hacks 180 | . 60 . 30 . . . . . 90 . . . . . . . . . . . . . . . . . . . . . Disable Machine 810 | . . . 45 . . . 45 15 . 60 135 . 90 105 . . . . 60 . . . . . 135 . . 15 15 90 Anti-Garrison Action 50 | . . . . . . . . . . . . . . . . . . . . . . . . . . . . . . 50 Destroy Structure 1589 | . 1 . 17 . . 7 18 2 1 37 98 18 5 172 . . . . 140 . . . . 130 320 . 9 102 69 443 Advance Influence 300 | . . . . . . . . . . 300 . . . . . . . . . . . . . . . . . . . . Lose Combat Pursuer 600 | . 60 . . . . 30 45 . . 45 60 . . 90 . . . . 90 . . . 15 . 45 . . 15 . 105 Influence Decreases 13219 | 25 491 121 360 267 138 40 437 259 392 609 875 1013 1108 555 642 272 349 252 412 368 315 194 165 400 615 713 9 40 780 1003 Entered New Map 4469 | . . 14 . 217 138 . 60 33 33 12 209 735 558 109 396 102 349 . 17 238 91 179 . . 1 713 . . 186 79 Time Decay 7783 | 25 431 80 330 50 . 30 377 226 359 577 546 238 550 386 246 170 . 252 365 120 214 15 155 390 574 . 9 . 434 634 Lost Part 597 | . 60 27 30 . . 10 . . . 20 . . . . . . . . 30 10 10 . 10 10 40 . . 40 10 290 Lost Ally 220 | . . . . . . . . . . . 120 40 . 60 . . . . . . . . . . . . . . . . Purge Threat 150 | . . . . . . . . . . . . . . . . . . . . . . . . . . . . . 150 . Squads Dispatched 76 | . 4 . 3 . . 1 2 2 . 4 8 . . 10 . . . . 7 . . . . 6 7 . 1 2 6 13 Investigation 13 | . 2 . 2 . . . . . . . 4 . . . . . . . . . . . . 2 1 . . . . 2 Extermination 23 | . . . . . . . . . . 2 . . . 2 . . . . 5 . . . . . 4 . 1 . 2 7 Reinforcement 29 | . 2 . 1 . . 1 2 2 . 2 2 . . 6 . . . . 2 . . . . 4 2 . . 2 1 . Assault 8 | . . . . . . . . . . . 2 . . 2 . . . . . . . . . . . . . . . 4 Garrison 3 | . . . . . . . . . . . . . . . . . . . . . . . . . . . . . 3 . Intercept . | . . . . . . . . . . . . . . . . . . . . . . . . . . . . . . . Searches Triggered . | . . . . . . . . . . . . . . . . . . . . . . . . . . . . . . . Construction Impeded 5 | . . . . . . 1 1 . . . 1 . . 1 . . . . . . . . . . . . . . 1 . Haulers Reinforced 5 | . . . . . . . . . . 2 . . . 2 . . . . . . . . . 1 . . . . . . Active Scanning Responses . | . . . . . . . . . . . . . . . . . . . . . . . . . . . . . . . Cargo Convoy Interrupts . | . . . . . . . . . . . . . . . . . . . . . . . . . . . . . . . Stealth | -11 -10 -10 -9 -9 -9 -8 -8 -8 -8 -6 -6 -6 -6 -5 -5 -5 -5 -4 -4 -4 -4 -4 -3 -3 -3 -3 -2 -2 -1 -1 --------- Run | Yrd Mat Min Mat Min Exi Min Mat Sto Rec Fac Ext Cet Arc Fac Upp Upp War Pro Fac Upp Upp Zhi Pro Res Arm Lab Res DSF Acc Com Distress Signals 35 | . 3 . 3 . . . 1 4 . 2 . 2 . 3 . . . . 2 . . . . 7 3 . . . 1 4 Communications Jammed 26 | . . . . . . . . . . . . . . 7 . . . . . . . . . . 16 . . 3 . . Distress Signals 15 | . . . . . . . . . . . . . . 5 . . . . . . . . . . 10 . . . . . Times Spotted 522 | . 27 4 37 1 . 3 16 12 6 31 56 9 17 30 5 4 . 13 40 18 1 . 8 17 51 1 . 15 22 78 Peak Tracking Total 13 | . 3 2 9 1 . 2 3 3 3 6 8 5 2 9 2 3 . 4 13 9 1 . 5 4 8 1 . 5 4 7 Tactical Retreats 25 | . 2 . . . . 1 2 . . 2 2 . . 2 . . . . 4 . . . 1 . 1 . . 1 . 7 Traps | -11 -10 -10 -9 -9 -9 -8 -8 -8 -8 -6 -6 -6 -6 -5 -5 -5 -5 -4 -4 -4 -4 -4 -3 -3 -3 -3 -2 -2 -1 -1 ------- Run | Yrd Mat Min Mat Min Exi Min Mat Sto Rec Fac Ext Cet Arc Fac Upp Upp War Pro Fac Upp Upp Zhi Pro Res Arm Lab Res DSF Acc Com Traps Triggered 16 | . . . . . . . 1 1 . 2 2 . . 1 . . . . 7 . . . . 1 . . . . . 1 Indirectly . | . . . . . . . . . . . . . . . . . . . . . . . . . . . . . . . Trap Hack Attempts . | . . . . . . . . . . . . . . . . . . . . . . . . . . . . . . . Triggered . | . . . . . . . . . . . . . . . . . . . . . . . . . . . . . . . Disarmed . | . . . . . . . . . . . . . . . . . . . . . . . . . . . . . . . Reprogrammed . | . . . . . . . . . . . . . . . . . . . . . . . . . . . . . . . Reused . | . . . . . . . . . . . . . . . . . . . . . . . . . . . . . . . Traps Extracted . | . . . . . . . . . . . . . . . . . . . . . . . . . . . . . . . Installed . | . . . . . . . . . . . . . . . . . . . . . . . . . . . . . . . Triggered . | . . . . . . . . . . . . . . . . . . . . . . . . . . . . . . . Machines | -11 -10 -10 -9 -9 -9 -8 -8 -8 -8 -6 -6 -6 -6 -5 -5 -5 -5 -4 -4 -4 -4 -4 -3 -3 -3 -3 -2 -2 -1 -1 ---------- Run | Yrd Mat Min Mat Min Exi Min Mat Sto Rec Fac Ext Cet Arc Fac Upp Upp War Pro Fac Upp Upp Zhi Pro Res Arm Lab Res DSF Acc Com Machines Disabled 65 | . . . 6 . . . 3 1 . 4 10 . 6 7 . . . . 4 1 . . . . 9 2 . 2 1 9 Max in Single Turn 4 | . . . 3 . . . 1 1 . 1 2 . 1 . . . . . 1 1 . . . . 4 1 . 1 1 2 Garrison Access 2 | . . . . . . . . . . . . . . . . . . . 1 . . . . 1 . . . . . . Phase Generator 1 | . . . . . . . . . . . . . . . . . . . . . . . . . . . . . . 1 Machines Repaired . | . . . . . . . . . . . . . . . . . . . . . . . . . . . . . . . Machines Dismantled . | . . . . . . . . . . . . . . . . . . . . . . . . . . . . . . . Machines Sabotaged . | . . . . . . . . . . . . . . . . . . . . . . . . . . . . . . . Overloaded Fab Kills . | . . . . . . . . . . . . . . . . . . . . . . . . . . . . . . . Hacking | -11 -10 -10 -9 -9 -9 -8 -8 -8 -8 -6 -6 -6 -6 -5 -5 -5 -5 -4 -4 -4 -4 -4 -3 -3 -3 -3 -2 -2 -1 -1 --------- Run | Yrd Mat Min Mat Min Exi Min Mat Sto Rec Fac Ext Cet Arc Fac Upp Upp War Pro Fac Upp Upp Zhi Pro Res Arm Lab Res DSF Acc Com Machines Accessed 103 | . 5 . 3 . 2 . 8 4 11 8 10 . . 8 . . . . 7 . 1 4 . 7 8 1 3 . 7 6 Terminals 58 | . 3 . . . . . 6 4 3 5 10 . . 5 . . . . 2 . . . . 3 5 . 1 . 6 5 Fabricators 5 | . . . . . . . . . . . . . . 2 . . . . . . . . . . 3 . . . . . Repair Stations 2 | . . . . . . . . . . . . . . . . . . . . . . . . 1 . . 1 . . . Recycling Units 22 | . 2 . 1 . . . 1 . 7 2 . . . . . . . . 4 . . . . 2 . . 1 . 1 1 Scanalyzers 4 | . . . 2 . . . . . . 1 . . . 1 . . . . . . . . . . . . . . . . Garrison Access 3 | . . . . . . . 1 . . . . . . . . . . . 1 . . . . 1 . . . . . . Total Hacks 214 | . 9 . 7 . 2 . 19 10 26 21 22 . . 13 . . . . 12 . 1 17 . 15 11 1 4 . 12 12 Successful 102 | . 5 . 5 . 2 . 5 5 14 10 5 . . 6 . . . . 6 . 1 17 . 7 2 1 2 . 6 3 Failed 111 | . 3 . 2 . . . 14 5 12 11 17 . . 7 . . . . 6 . . . . 8 9 . 2 . 6 9 Catastrophic 29 | . . . . . . . 4 . 2 5 3 . . 5 . . . . 1 . . . . 2 4 . . . 1 2 Database Lockouts 1 | . 1 . . . . . . . . . . . . . . . . . . . . . . . . . . . . . Manual 72 | . 9 . 3 . 1 . 9 6 18 4 2 1 . 4 . . . . 4 . . . . 5 . . . . 3 3 Terminals 124 | . 7 . . . . . 15 10 7 14 22 . . 10 . . . . 4 . . . . 7 6 . 1 . 10 11 Fabricators 7 | . . . . . . . . . . . . . . 2 . . . . . . . . . . 5 . . . . . Repair Stations 2 | . . . . . . . . . . . . . . . . . . . . . . . . 1 . . 1 . . . Recycling Units 44 | . 2 . 3 . . . 1 . 17 5 . . . . . . . . 7 . . . . 4 . . 2 . 2 1 Scanalyzers 7 | . . . 4 . . . . . . 2 . . . 1 . . . . . . . . . . . . . . . . Garrison Access 7 | . . . . . . . 3 . . . . . . . . . . . 1 . . . . 3 . . . . . . Terminal Hacks 59 | . 2 . . . 2 . 3 4 3 7 4 . . 3 . . . . 1 . 1 17 . 1 2 1 1 . 5 2 Record 7 | . . . . . 1 . . . . . . . . . . . . . . . . 5 . . . 1 . . . . Part Schematic 5 | . . . . . . . . . . 1 . . . . . . . . . . . 4 . . . . . . . . Robot Analysis 8 | . 2 . . . . . . 1 1 . . . . . . . . . . . . 4 . . . . . . . . Prototype ID Bank 6 | . . . . . . . 1 . . 1 . . . . . . . . . . . 4 . . . . . . . . Open Door 14 | . . . . . . . . 2 . 1 4 . . . . . . . . . 1 . . 1 2 . . . 3 . Open DSF 1 | . . . . . . . . . . . . . . . . . . . . . . . . . . . 1 . . . Branch Access Points 5 | . . . . . . . 1 . . 1 . . . 1 . . . . 1 . . . . . . . . . 1 . Alert Level 2 | . . . . . . . . . . 1 . . . . . . . . . . . . . . . . . . . 1 Unreport Threat 1 | . . . . . . . . . . . . . . . . . . . . . . . . . . . . . 1 . Maintenance Status 2 | . . . . . . . . . . 1 . . . 1 . . . . . . . . . . . . . . . . Security Status 1 | . . . . . . . . . . . . . . . . . . . . . . . . . . . . . . 1 Patrol Status 1 | . . . . . . . . . . . . . . 1 . . . . . . . . . . . . . . . . Hauler Manifests 3 | . . . . . . . 1 1 . 1 . . . . . . . . . . . . . . . . . . . . Proto ID Catalog 1 | . . . . . 1 . . . . . . . . . . . . . . . . . . . . . . . . . Release Object 2 | . . . . . . . . . 2 . . . . . . . . . . . . . . . . . . . . . Fabricator Hacks . | . . . . . . . . . . . . . . . . . . . . . . . . . . . . . . . Repair Station Hacks . | . . . . . . . . . . . . . . . . . . . . . . . . . . . . . . . Recycling Unit Hacks 12 | . . . . . . . 1 . 2 2 . . . . . . . . 3 . . . . 2 . . 1 . . 1 Retrieve Components 12 | . . . . . . . 1 . 2 2 . . . . . . . . 3 . . . . 2 . . 1 . . 1 Scanalyzer 6 | . . . 4 . . . . . . 1 . . . 1 . . . . . . . . . . . . . . . . Insert Component 4 | . . . 2 . . . . . . 1 . . . 1 . . . . . . . . . . . . . . . . Analyze 2 | . . . 2 . . . . . . . . . . . . . . . . . . . . . . . . . . . Garrison Access Hacks 2 | . . . . . . . . . . . . . . . . . . . 1 . . . . 1 . . . . . . Seal Access 2 | . . . . . . . . . . . . . . . . . . . 1 . . . . 1 . . . . . . Unauthorized Hacks 23 | . 3 . 1 . . . 1 1 9 . 1 . . 2 . . . . 1 . . . . 3 . . . . 1 . Terminals 11 | . 1 . . . . . 1 1 1 . 1 . . 2 . . . . 1 . . . . 2 . . . . 1 . Botnet 11 | . 1 . . . . . 1 1 1 . 1 . . 2 . . . . 1 . . . . 2 . . . . 1 . Fabricators . | . . . . . . . . . . . . . . . . . . . . . . . . . . . . . . . Repair Stations 1 | . . . . . . . . . . . . . . . . . . . . . . . . 1 . . . . . . Patch 1 | . . . . . . . . . . . . . . . . . . . . . . . . 1 . . . . . . Recycling Units 11 | . 2 . 1 . . . . . 8 . . . . . . . . . . . . . . . . . . . . . Reject 2 | . . . . . . . . . 2 . . . . . . . . . . . . . . . . . . . . . Recyclers 1 | . . . . . . . . . 1 . . . . . . . . . . . . . . . . . . . . . Mask 2 | . . . . . . . . . 2 . . . . . . . . . . . . . . . . . . . . . Tunnel 6 | . 2 . 1 . . . . . 3 . . . . . . . . . . . . . . . . . . . . . Scanalyzers . | . . . . . . . . . . . . . . . . . . . . . . . . . . . . . . . Garrison Access . | . . . . . . . . . . . . . . . . . . . . . . . . . . . . . . . Data Cores Recovered . | . . . . . . . . . . . . . . . . . . . . . . . . . . . . . . . Used . | . . . . . . . . . . . . . . . . . . . . . . . . . . . . . . . Hacking Detections 70 | . 3 . 3 . . . 7 3 7 6 7 . . 7 . . . . 5 . . . . 3 8 . 1 . 4 6 Full Trace Events 11 | . . . . . . . 1 . 3 . 4 . . . . . . . . . . . . . 1 . . . . 2 Feedback Events . | . . . . . . . . . . . . . . . . . . . . . . . . . . . . . . . Feedback Blocked . | . . . . . . . . . . . . . . . . . . . . . . . . . . . . . . . Robot Schematics Acquired . | . . . . . . . . . . . . . . . . . . . . . . . . . . . . . . . Robots Built . | . . . . . . . . . . . . . . . . . . . . . . . . . . . . . . . Authchips . | . . . . . . . . . . . . . . . . . . . . . . . . . . . . . . . Time . | . . . . . . . . . . . . . . . . . . . . . . . . . . . . . . . Total Robot Build Rating . | . . . . . . . . . . . . . . . . . . . . . . . . . . . . . . . Part Schematics Acquired 7 | . . . 2 . . . . . . 1 . . . . . . . . . . . 4 . . . . . . . . Parts Built . | . . . . . . . . . . . . . . . . . . . . . . . . . . . . . . . Authchips . | . . . . . . . . . . . . . . . . . . . . . . . . . . . . . . . Time . | . . . . . . . . . . . . . . . . . . . . . . . . . . . . . . . Total Part Build Rating . | . . . . . . . . . . . . . . . . . . . . . . . . . . . . . . . Parts Repaired . | . . . . . . . . . . . . . . . . . . . . . . . . . . . . . . . Time . | . . . . . . . . . . . . . . . . . . . . . . . . . . . . . . . Parts Recycled . | . . . . . . . . . . . . . . . . . . . . . . . . . . . . . . . Recycled Matter . | . . . . . . . . . . . . . . . . . . . . . . . . . . . . . . . Retrieved Matter . | . . . . . . . . . . . . . . . . . . . . . . . . . . . . . . . Retrieved Components 71 | . . . . . . . 1 . 9 18 . . . . . . . . 19 . . . . 13 . . 1 . . 10 Parts Scanalyzed 2 | . . . 2 . . . . . . . . . . . . . . . . . . . . . . . . . . . Part Schematics Acquired 2 | . . . 2 . . . . . . . . . . . . . . . . . . . . . . . . . . . Parts Damaged . | . . . . . . . . . . . . . . . . . . . . . . . . . . . . . . . Bothacking | -11 -10 -10 -9 -9 -9 -8 -8 -8 -8 -6 -6 -6 -6 -5 -5 -5 -5 -4 -4 -4 -4 -4 -3 -3 -3 -3 -2 -2 -1 -1 ------------ Run | Yrd Mat Min Mat Min Exi Min Mat Sto Rec Fac Ext Cet Arc Fac Upp Upp War Pro Fac Upp Upp Zhi Pro Res Arm Lab Res DSF Acc Com Used RIF Installer . | . . . . . . . . . . . . . . . . . . . . . . . . . . . . . . . Robots Hacked . | . . . . . . . . . . . . . . . . . . . . . . . . . . . . . . . Non-combat . | . . . . . . . . . . . . . . . . . . . . . . . . . . . . . . . Combat . | . . . . . . . . . . . . . . . . . . . . . . . . . . . . . . . Robot Hacks Applied . | . . . . . . . . . . . . . . . . . . . . . . . . . . . . . . . Relay Couplers Released . | . . . . . . . . . . . . . . . . . . . . . . . . . . . . . . . Fabnet Peak Effective % . | . . . . . . . . . . . . . . . . . . . . . . . . . . . . . . . Robots Rewired 8 | . . . . . . . . . . . 8 . . . . . . . . . . . . . . . . . . . Allies Hacked . | . . . . . . . . . . . . . . . . . . . . . . . . . . . . . . . Hacks Repelled . | . . . . . . . . . . . . . . . . . . . . . . . . . . . . . . . Allies | -11 -10 -10 -9 -9 -9 -8 -8 -8 -8 -6 -6 -6 -6 -5 -5 -5 -5 -4 -4 -4 -4 -4 -3 -3 -3 -3 -2 -2 -1 -1 -------- Run | Yrd Mat Min Mat Min Exi Min Mat Sto Rec Fac Ext Cet Arc Fac Upp Upp War Pro Fac Upp Upp Zhi Pro Res Arm Lab Res DSF Acc Com Total Allies 24 | . . . . 1 . . . . . . 18 5 . . . . . . . . . . . . . . . . . . Largest Group 8 | . . . . 1 1 . . . . . 8 6 5 4 . . . . . . . . . . . . . . . . Highest-Rated Group 571 | . . . . 31 31 . . . . . 303 571 412 384 . . . . . . . . . . . . . . . . Highest-Rated Ally 159 | . . . . 31 31 . . . . . 159 159 96 96 . . . . . . . . . . . . . . . . Initial Warlord ECA Mod 18 | . . . . . . . . . . . . . . . . . . . . . . . . . . . . . 9 9 Total Orders 6 | . . . . . . . . . . . 4 2 . . . . . . . . . . . . . . . . . . STAY 3 | . . . . . . . . . . . 2 1 . . . . . . . . . . . . . . . . . . FOLLOW 3 | . . . . . . . . . . . 2 1 . . . . . . . . . . . . . . . . . . Ally Attacks 171 | . . . . . . . . . . . 97 26 10 38 . . . . . . . . . . . . . . . . Total Damage 5581 | . . . . . . . . . . . 1623 874 347 2737 . . . . . . . . . . . . . . . . Kills 29 | . . . . . . . . . . . 9 3 2 15 . . . . . . . . . . . . . . . . Allies Corrupted 3 | . . . . . . . . . . . 3 . . . . . . . . . . . . . . . . . . . Allies Melted . | . . . . . . . . . . . . . . . . . . . . . . . . . . . . . . . Intel | -11 -10 -10 -9 -9 -9 -8 -8 -8 -8 -6 -6 -6 -6 -5 -5 -5 -5 -4 -4 -4 -4 -4 -3 -3 -3 -3 -2 -2 -1 -1 ------- Run | Yrd Mat Min Mat Min Exi Min Mat Sto Rec Fac Ext Cet Arc Fac Upp Upp War Pro Fac Upp Upp Zhi Pro Res Arm Lab Res DSF Acc Com Active Infowar (turns) 6662 | 26 167 . 11 . . . . . . 270 . . . 541 537 358 53 568 145 . . . . 1101 1245 . 364 144 617 515 Optics 2424 | . . . . . . . . . . . . . . . 102 358 53 568 145 . . . . 1023 175 . . . . . Sensors 113 | . . . . . . . . . . 113 . . . . . . . . . . . . . . . . . . . . IFF 55 | . . . . . . . . . . . . . . . . . . . . . . . . . . . . . 55 . Terrain 1848 | . . . . . . . . . . . . . . . . . . . . . . . . 131 162 . 364 115 561 515 Structural 1 | . . . . . . . . . . . . . . . . . . . . . . . . . . . . . 1 . Seismic 465 | 26 167 . . . . . . . . 270 . . . . . . . . . . . . . . . . . 2 . . T.N.C. 11 | . . . 11 . . . . . . . . . . . . . . . . . . . . . . . . . . . Jamming 2980 | . . . . . . . . . . . . . . 541 537 358 53 47 . . . . . 259 1083 . . 102 . . ECM 8 | . . . . . . . . . . . . . . . . . . . . . . . . 8 . . . . . . Robot Analysis Total 8 | . 2 . . . . . . 1 1 . . . . . . . . . . . . 4 . . . . . . . . Derelict Logs Recovered 6 | . . . . . . . . . . . . . . . 1 1 . 2 . 1 1 . . . . . . . . . Drone Launches . | . . . . . . . . . . . . . . . . . . . . . . . . . . . . . . . Drone Recoveries . | . . . . . . . . . . . . . . . . . . . . . . . . . . . . . . . Exploration | -11 -10 -10 -9 -9 -9 -8 -8 -8 -8 -6 -6 -6 -6 -5 -5 -5 -5 -4 -4 -4 -4 -4 -3 -3 -3 -3 -2 -2 -1 -1 ------------- Run | Yrd Mat Min Mat Min Exi Min Mat Sto Rec Fac Ext Cet Arc Fac Upp Upp War Pro Fac Upp Upp Zhi Pro Res Arm Lab Res DSF Acc Com Turns Passed 25478 | 119 1128 251 885 115 422 65 956 497 2251 1771 1561 514 1583 909 537 358 53 568 2125 259 455 252 427 1101 1746 473 364 432 1066 2235 Spaces Moved 13289 | 59 599 133 440 79 308 23 613 280 1098 988 902 211 152 829 266 255 40 436 1008 254 327 179 322 1054 647 179 151 112 511 834 Core 7 | 7 . . . . . . . . . . . . . . . . . . . . . . . . . . . . . . Treads 5819 | . . . . . . . . . 32 70 . . . 338 266 255 40 416 729 254 327 179 322 308 504 179 151 104 511 834 Legs 2396 | 52 74 . . . . . . . 303 100 . 106 152 491 . . . 20 201 . . . . 746 143 . . 8 . . Wheels 3302 | . 525 133 440 79 308 23 613 280 592 309 . . . . . . . . . . . . . . . . . . . . Hover 1343 | . . . . . . . . . . 336 902 105 . . . . . . . . . . . . . . . . . . Flight 422 | . . . . . . . . . 171 173 . . . . . . . . 78 . . . . . . . . . . . Fastest Speed 50 | 50 120 135 135 135 135 135 120 120 111 104 77 57 57 57 135 135 135 110 87 87 87 87 87 87 87 151 235 151 151 151 Average Speed 131 | 111 134 141 136 135 135 148 120 120 166 140 112 100 57 93 135 135 135 111 155 87 87 87 87 87 197 203 235 195 151 151 Slowest Speed 294 | 120 200 215 145 135 135 150 150 120 294 197 147 175 57 155 135 135 135 135 283 87 87 87 87 87 235 235 235 235 151 200 Overloaded Moves . | . . . . . . . . . . . . . . . . . . . . . . . . . . . . . . . Propulsion Burnouts . | . . . . . . . . . . . . . . . . . . . . . . . . . . . . . . . Robots Hopped . | . . . . . . . . . . . . . . . . . . . . . . . . . . . . . . . Potential Cave-ins 11 | . . . . . . . . . . . 7 . . 2 . . . . . . . . . 2 . . . . . . Cave-ins Triggered 1 | . . . . . . . . . . . 1 . . . . . . . . . . . . . . . . . . . Exploration Rate (%) 46 | 3 69 29 45 17 70 6 69 40 95 26 85 56 77 27 62 62 10 63 21 43 51 60 54 35 45 93 5 83 17 35 Regions Visited 30 Branch Regions 20 Pre-discovered Areas 10 | . 2 . 1 . 1 . . . 3 . . . . . . . . . . . . 3 . . . . . . . . Known Exits Taken 10 | . . . . . . . 1 . . 1 . . 1 1 . . . . 1 1 . . 1 1 . . 1 . 1 . Unknown Exits Taken 19 | 1 1 1 1 1 1 1 . 1 1 . 1 1 . . 1 1 1 1 . . 1 1 . . 1 1 . . . . Scrap Searched 13 | . . 2 . . . 1 . . . . . . . . 2 1 . 2 . 2 2 . 1 . . . . . . . Spaces Dug 271 | . . . . . . . 3 . . 19 97 . . 34 8 . . 17 20 . 1 . . 9 37 . 3 . 8 15 Terrain Destroyed 1119 | . . . 13 . . 7 17 . . 38 201 7 4 45 13 . . 57 77 51 3 . . 78 219 1 3 36 36 213 Melee 17 | . . . . . . . 3 . . 5 . . . . . . . . . . . . . 9 . . . . . . Projectile 387 | . . . . . . . 1 . . 22 29 7 4 21 13 . . 2 64 1 3 . . 3 83 1 3 4 36 90 AOE 711 | . . . 13 . . 7 13 . . 11 170 . . 24 . . . 55 13 50 . . . 66 136 . . 32 . 121 Terrain Rammed . | . . . . . . . . . . . . . . . . . . . . . . . . . . . . . . . Walls Destroyed . | . . . . . . . . . . . . . . . . . . . . . . . . . . . . . . . Machines Disabled . | . . . . . . . . . . . . . . . . . . . . . . . . . . . . . . . Actions | -11 -10 -10 -9 -9 -9 -8 -8 -8 -8 -6 -6 -6 -6 -5 -5 -5 -5 -4 -4 -4 -4 -4 -3 -3 -3 -3 -2 -2 -1 -1 --------- Run | Yrd Mat Min Mat Min Exi Min Mat Sto Rec Fac Ext Cet Arc Fac Upp Upp War Pro Fac Upp Upp Zhi Pro Res Arm Lab Res DSF Acc Com Total 19054 | 88 780 173 626 87 316 42 779 388 1407 1242 1327 495 1620 918 417 263 39 482 1464 278 481 253 403 1159 898 265 158 244 676 1286 Wait 3304 | 8 50 6 39 1 . 3 87 77 191 65 121 219 1430 17 125 4 . 7 337 2 138 54 40 24 58 8 1 26 62 104 Move 13258 | 58 598 132 439 78 307 22 612 279 1097 987 900 210 151 828 265 254 39 435 1007 253 326 178 321 1053 646 178 150 111 510 834 Hop . | . . . . . . . . . . . . . . . . . . . . . . . . . . . . . . . Pick Up 244 | 3 27 9 28 3 2 2 17 2 6 32 19 13 1 5 1 . . 3 6 2 2 3 2 8 17 16 . 2 1 12 Fast Attach 118 | 6 3 . 8 . 2 . 5 1 2 4 4 1 2 5 1 . . . 9 3 2 3 3 1 9 7 . 15 10 12 Attach 134 | . 4 3 2 . . 1 . . 1 11 5 1 . 4 . . . 1 11 4 1 . . 7 17 6 2 12 8 33 Detach 74 | . . . 1 . . . . . . 7 6 1 . 1 . . . 1 6 1 . . . 4 9 4 . 11 9 13 Swap 172 | . 5 2 18 . . 4 7 2 2 10 4 10 . 8 1 . . 3 2 . . . . 8 20 1 1 9 16 39 Drop 284 | . 4 7 34 3 5 2 22 3 34 21 21 16 3 6 2 . . 4 8 4 2 4 3 9 20 20 1 13 5 8 Fire 1235 | 13 88 14 56 2 . 8 25 24 72 90 124 24 33 44 22 5 . 28 75 6 5 . 4 20 99 25 3 45 52 229 Melee 99 | . . . . . . . 3 . 1 15 6 . . . . . . . . 3 5 11 30 25 . . . . . . Ram 1 | . . . . . . . 1 . . . . . . . . . . . . . . . . . . . . . . . Kick 3 | . 1 . . . . . . . . . . . . . . . . . 2 . . . . . . . . . . . Crush 9 | . . . 1 . . . . . . . . . . . . . . . . . . . . . 3 . . . 3 2 Escape Stasis 14 | . . . . . . . . . . . 14 . . . . . . . . . . . . . . . . . . . Rewire 105 | . . . . . . . . . 1 . 103 . . . . . . . 1 . . . . . . . . . . . Trap . | . . . . . . . . . . . . . . . . . . . . . . . . . . . . . . . Miscellaneous . | . . . . . . . . . . . . . . . . . . . . . . . . . . . . . . . Route ------- -11/Scrapyard -10/Materials (discovered 2 exits: *Mat / [*Min]) -10/Mines -9/Materials (discovered 2 exits: *Mat / [*Min]) -9/Mines -9/Exiles (discovered 2 exits: [*Min x2]) -8/Mines -8/Materials (discovered 4 exits: *Fac x2 / *Sto x2) -8/Storage -8/Recycling -6/Factory (discovered 5 exits: *Fac / Low x2 / *Ext x2) -6/Extension (discovered 2 exits: *Fac / *Cet) -6/Cetus (discovered 2 exits: *Fac / [*Arc]) -6/Archives (discovered 3 exits: *Fac / [*Hub x2]) -5/Factory (discovered 3 exits: *Fac / *Upp x2) -5/Upper Caves -5/Upper Caves (discovered 2 exits: *Fac / [*War]) -5/Warlord -4/Proximity Caves -4/Factory (discovered 3 exits: Res / *Upp x2) -4/Upper Caves -4/Upper Caves -4/Zhirov -3/Proximity Caves -3/Research (discovered 2 exits: *Arm / [*Qua]) -3/Armory (discovered 2 exits: *Res / *Lab) -3/Lab -2/Research -2/DSF -1/Access -1/Command History --------- Turn | Location | Event 5 | -11/Scrapyard | Discovered new exit (range 16) 120 | -11/Scrapyard | Entered Materials 309 | -10/Materials | Build established: Mutant 348 | -10/Materials | Lost 3 parts (2n1u) 403 | -10/Materials | Discovered new exit (range 6) 591 | -10/Materials | Discovered new exit (range 15) 647 | -10/Materials | Central database locked down 1224 | -10/Materials | Lost 3 parts (1n2w) 1248 | -10/Materials | Entered Mines 1320 | -10/Mines | Met a Derelict bent on vengeance 1340 | -10/Mines | Core integrity fell below 50% 1429 | -10/Mines | Discovered new exit (range 14) 1499 | -10/Mines | Entered Materials 1499 | -9/Materials | Evolved 2 slots: Propulsion x1, Utility x1 1584 | -9/Materials | Build established: Scavenger-Mutant 1694 | -9/Materials | Discovered new exit (range 7) 1769 | -9/Materials | Destroyed 8 combat bots 2067 | -9/Materials | Build established: Mutant 2161 | -9/Materials | Discovered new exit (range 12) 2384 | -9/Materials | Entered Mines 2435 | -9/Mines | Deemed a non-threat by the Exiles lab entrance 2436 | -9/Mines | Discovered new exit (range 5) 2471 | -9/Mines | Received a Mining Laser from a helpful Derelict 2499 | -9/Mines | Entered Exiles 2499 | -9/Exiles | Accompanied by 1 ally 2517 | -9/Exiles | Discovered new exit (range 15) 2533 | -9/Exiles | Met 8R-AWN 2555 | -9/Exiles | Met EX-HEX 2644 | -9/Exiles | Met EX-DEC 2665 | -9/Exiles | Learned location of Zion (-7) 2698 | -9/Exiles | Met EX-BIN 2714 | -9/Exiles | Aligned with FarCom system 2715 | -9/Exiles | Given EX-Vault access code 2746 | -9/Exiles | Opened EX-Vault 2757 | -9/Exiles | Found YOLO Cannon 2785 | -9/Exiles | Warned to stay clear of 0b10 Research branches 2905 | -9/Exiles | Discovered new exit (range 14) 2921 | -9/Exiles | Left Exiles lab with YOLO Cannon 2921 | -9/Exiles | Entered Mines 2921 | -8/Mines | Discovered new exit (range 17) 2986 | -8/Mines | Entered Materials 2986 | -8/Materials | Evolved 2 slots: Propulsion x1, Weapon x1 3260 | -8/Materials | Discovered new exit (range 7) 3344 | -8/Materials | Identified exit to Factory 3366 | -8/Materials | Build established: Skirmisher 3753 | -8/Materials | Discovered exit to Factory (range 5) 3869 | -8/Materials | Identified exit to Storage 3942 | -8/Materials | Entered Storage 4217 | -8/Storage | Used back door to open Recycling access 4217 | -8/Storage | Discovered new exit (range 5) 4439 | -8/Storage | Entered Recycling 4681 | -8/Recycling | Discovered new exit (range 16) 4848 | -8/Recycling | Scanned before Scraplab entrance 4875 | -8/Recycling | Angered Scraplab inhabitants 4921 | -8/Recycling | Found Prototype Device 4921 | -8/Recycling | Identified Scrap Engine 5314 | -8/Recycling | Build established: Construct 6690 | -8/Recycling | Entered Factory 6690 | -6/Factory | Evolved 4 slots: Power x1, Propulsion x1, Utility x2 6697 | -6/Factory | Discovered new exit (range 11) 6835 | -6/Factory | Noticed a derelict Sapper rigging charges 7946 | -6/Factory | Identified exit to Factory 8236 | -6/Factory | Identified exit to Lower Caves 8236 | -6/Factory | Identified exit to Extension 8445 | -6/Factory | Spotted B-75 Beast 8461 | -6/Factory | Entered Extension 8707 | -6/Extension | Rescued a captive Derelict 8805 | -6/Extension | Rescued a captive Derelict 8903 | -6/Extension | Lost 3 allies 8959 | -6/Extension | Rescued a captive Derelict 9104 | -6/Extension | Crushed by falling debris 9134 | -6/Extension | Rescued a captive Derelict 9135 | -6/Extension | Rescued a captive Derelict 9359 | -6/Extension | Rescued a captive Derelict 9511 | -6/Extension | First assault squad dispatched 9564 | -6/Extension | Rescued a captive Derelict 9685 | -6/Extension | Rescued a captive Derelict 9686 | -6/Extension | Rescued a captive Derelict 9711 | -6/Extension | Discovered exit to Factory (range 10) 9713 | -6/Extension | Discovered new exit (range 6) 9822 | -6/Extension | Spotted B-75 Beast 9846 | -6/Extension | Destroyed B-75 Beast 9852 | -6/Extension | Spotted B-75 Beast 9861 | -6/Extension | Disrupted transfer network 9865 | -6/Extension | Destroyed B-75 Beast 9888 | -6/Extension | Rescued A7 9953 | -6/Extension | Destroyed 7 combat bots 10022 | -6/Extension | Entered Cetus 10022 | -6/Cetus | Accompanied by 4 allies (A7) 10027 | -6/Cetus | Acquired a Cetus Manufacturing Module code from A7 10033 | -6/Cetus | Spotted Cetus Guard 10033 | -6/Cetus | Spotted Cetus Guard 10036 | -6/Cetus | Spotted Cetus Guard 10037 | -6/Cetus | Spotted Cetus Guard 10038 | -6/Cetus | Destroyed Cetus Guard 10042 | -6/Cetus | Destroyed Cetus Guard 10044 | -6/Cetus | Destroyed Cetus Guard 10046 | -6/Cetus | Destroyed Cetus Guard 10125 | -6/Cetus | Started Cetus Manufacturing Module 10150 | -6/Cetus | Manufactured an Enhanced Grunt 10158 | -6/Cetus | Discovered new exit (range 15) 10175 | -6/Cetus | Manufactured an Enhanced Grunt 10190 | -6/Cetus | Spotted Cetus Guard 10191 | -6/Cetus | Spotted Cetus Guard 10195 | -6/Cetus | Spotted Cetus Guard 10197 | -6/Cetus | Destroyed Cetus Guard 10197 | -6/Cetus | Spotted Cetus Guard 10199 | -6/Cetus | Destroyed Cetus Guard 10200 | -6/Cetus | Manufactured an Enhanced Grunt 10201 | -6/Cetus | Allies destroyed Cetus Guard 10203 | -6/Cetus | Destroyed Cetus Guard 10217 | -6/Cetus | Discovered exit to Factory (range 15) 10225 | -6/Cetus | Manufactured an Enhanced Grunt 10225 | -6/Cetus | Met Revision 17 10250 | -6/Cetus | Manufactured an Enhanced Grunt 10368 | -6/Cetus | Found Prototype Device 10369 | -6/Cetus | Identified Exp. Thermal Shield 10496 | -6/Cetus | Murdered A7 10497 | -6/Cetus | Extracted ID and sensor layout for unrecognized location from A7's data core 10536 | -6/Cetus | Entered Archives 10536 | -6/Archives | Accompanied by 5 allies 10544 | -6/Archives | Build established: Commander-Construct 10580 | -6/Archives | Discovered new exit (range 15) 10645 | -6/Archives | Discovered new exit (range 16) 10679 | -6/Archives | Discovered exit to Factory (range 14) 12119 | -6/Archives | Entered Factory 12119 | -5/Factory | Accompanied by 4 allies 12119 | -5/Factory | Evolved 2 slots: Utility x2 12684 | -5/Factory | Build established: Construct 12808 | -5/Factory | Identified exit to Upper Caves 12886 | -5/Factory | Discovered new exit (range 16) 13019 | -5/Factory | First assault squad dispatched 13028 | -5/Factory | Entered Upper Caves 13372 | -5/Upper Caves | Learned Factory emergency access door positions 13430 | -5/Upper Caves | Attracted the attention of an 0b10 checkpoint 13532 | -5/Upper Caves | Discovered new exit (range 16) 13565 | -5/Upper Caves | Entered another Upper Caves area 13622 | -5/Upper Caves | Discovered new exit (range 8) 13633 | -5/Upper Caves | Learned location of 1 exit from Factory 13843 | -5/Upper Caves | Encountered a Warlord checkpoint 13888 | -5/Upper Caves | Discovered new exit (range 10) 13923 | -5/Upper Caves | Entered Warlord 13960 | -5/Warlord | Discovered new exit (range 14) 13976 | -5/Warlord | Entered Proximity Caves 14065 | -4/Proximity Caves | Learned Research security intel 14071 | -4/Proximity Caves | Destroyed 7 combat bots 14092 | -4/Proximity Caves | Attracted the attention of an 0b10 checkpoint 14276 | -4/Proximity Caves | Learned location of 1 exit from Upper Caves 14505 | -4/Proximity Caves | Discovered new exit (range 8) 14508 | -4/Proximity Caves | Found DCF Scrap (13 items) 14544 | -4/Proximity Caves | Entered Factory 14544 | -4/Factory | Evolved 2 slots: Power x1, Utility x1 14545 | -4/Factory | Identified exit to Research 14644 | -4/Factory | Discovered new exit (range 21) 16517 | -4/Factory | Identified exit to Upper Caves 16669 | -4/Factory | Entered Upper Caves 16670 | -4/Upper Caves | Identified exit to Upper Caves 16906 | -4/Upper Caves | Learned Research emergency access door positions 16928 | -4/Upper Caves | Entered another Upper Caves area 16941 | -4/Upper Caves | Attracted the attention of an 0b10 checkpoint 17266 | -4/Upper Caves | Learned 4 Research zone layouts 17360 | -4/Upper Caves | Discovered new exit (range 8) 17383 | -4/Upper Caves | Entered Zhirov 17383 | -4/Zhirov | Discovered new exit (range 3) 17399 | -4/Zhirov | Met Zhirov 17418 | -4/Zhirov | Learned location of Testing (-2) 17424 | -4/Zhirov | Zhirov requested help retrieving the SGEMP Prototype 17439 | -4/Zhirov | Found Alien Artifact 17439 | -4/Zhirov | Identified Integrated Dissipator 17439 | -4/Zhirov | Installed Integrated Dissipator, increased core heat dissipation (+20) 17452 | -4/Zhirov | Found Alien Artifact 17635 | -4/Zhirov | Entered Proximity Caves 18057 | -3/Proximity Caves | Discovered exit to Research (range 6) 18062 | -3/Proximity Caves | Entered Research 18062 | -3/Research | Evolved 2 slots: Utility x1, Weapon x1 18140 | -3/Research | Found Prototype Processor 18140 | -3/Research | Identified Spectral Analyzer 18262 | -3/Research | Revision forces began assault on 0b10 18282 | -3/Research | Discovered new exit (range 9) 18356 | -3/Research | Spotted B-86 Titan 18430 | -3/Research | Met up with Revision 17++ 18436 | -3/Research | Build established: Hacker-Construct 18762 | -3/Research | Research terminal network offline 18993 | -3/Research | Spotted Striker 19107 | -3/Research | Discovered new exit (range 23) 19128 | -3/Research | Identified exit to Armory 19147 | -3/Research | Spotted Striker 19163 | -3/Research | Entered Armory 19164 | -3/Armory | Met VL-GR5, who suggested a friendly competition 19414 | -3/Armory | Lost the competition with VL-GR5 19422 | -3/Armory | Build established: Construct 19476 | -3/Armory | Discovered new exit (range 3) 19484 | -3/Armory | VL-GR5 left a parting gift on exiting Armory 19493 | -3/Armory | Found Prototype Energy Cannon 20111 | -3/Armory | Spotted Armor Guard 20111 | -3/Armory | Spotted Armor Guard 20208 | -3/Armory | Destroyed Armor Guard 20269 | -3/Armory | Identified Multinova Projection Cannon 20289 | -3/Armory | Destroyed Armor Guard 20717 | -3/Armory | Discovered new exit (range 11) 20909 | -3/Armory | Entered Lab 20909 | -3/Lab | Discovered new exit (range 9) 20935 | -3/Lab | Hidden lab's door opened automatically 20935 | -3/Lab | Sensor layout match revealed 20936 | -3/Lab | Gained access to the hidden lab's interior 21023 | -3/Lab | Unable to decrypt terminal 21035 | -3/Lab | Found Alien Artifact 21035 | -3/Lab | Identified Core Reset Matrix 21035 | -3/Lab | Used Core Reset Matrix 21039 | -3/Lab | Sensed 4 artifacts in vicinity 21052 | -3/Lab | Found Transdimensional Reconstructor 21062 | -3/Lab | Found Integrated Dissipator 21062 | -3/Lab | Installed Integrated Dissipator, increased core heat dissipation (+20) 21072 | -3/Lab | Found Core Expander 21072 | -3/Lab | Installed Core Expander, added new Power slot 21099 | -3/Lab | Found Prototype Hackware 21103 | -3/Lab | Found Prototype Protection 21107 | -3/Lab | Found Prototype Energy Cannon 21109 | -3/Lab | Detected by scanners 21111 | -3/Lab | Found Prototype Energy Cannon 21111 | -3/Lab | Identified Warp Cannon 21129 | -3/Lab | Confronted by A5 21170 | -3/Lab | Destroyed A5 21269 | -3/Lab | Discovered new exit (range 6) 21379 | -3/Lab | Build established: Generator-Construct 21382 | -3/Lab | Entered Research 21382 | -2/Research | Evolved 2 slots: Propulsion x1, Utility x1 21694 | -2/Research | Build established: Generator-Tank 21746 | -2/Research | Identified exit to DSF 21746 | -2/Research | Entered DSF 21835 | -2/DSF | Additional patrols routed to DSF 21932 | -2/DSF | Identified Hvy. Regenerative Plating 21963 | -2/DSF | Lost 4 parts (3u1w) 21980 | -2/DSF | Sterilization system engaged 22000 | -2/DSF | Ambient heat levels rising (+10) 22015 | -2/DSF | Ambient heat levels rising (+10) 22030 | -2/DSF | Ambient heat levels rising (+10) 22045 | -2/DSF | Ambient heat levels rising (+10) 22060 | -2/DSF | Ambient heat levels rising (+10) 22075 | -2/DSF | Ambient heat levels rising (+10) 22084 | -2/DSF | Discovered new exit (range 14) 22089 | -2/DSF | Found Unknown Device 22089 | -2/DSF | Identified Launcher Loader 22090 | -2/DSF | Ambient heat levels rising (+10) 22105 | -2/DSF | Ambient heat levels rising (+10) 22120 | -2/DSF | Ambient heat levels rising (+10) 22135 | -2/DSF | Ambient heat levels rising (+10) 22150 | -2/DSF | Ambient heat levels rising (+10) 22165 | -2/DSF | Ambient heat levels rising (+10) 22178 | -2/DSF | Entered Access 22178 | -1/Access | Evolved 2 slots: Utility x2 22294 | -1/Access | Identified Deep Network Scanner 22349 | -1/Access | Identified exit to Command 22354 | -1/Access | Build established: Generator-Skirmisher 22561 | -1/Access | Garrison activated, responded to threat 22691 | -1/Access | Identified Potential Cannon 23244 | -1/Access | Entered Command 23627 | -1/Command | Lost 3 parts (1p2w) 23644 | -1/Command | System corruption reached 10% 23994 | -1/Command | First assault squad dispatched 23996 | -1/Command | Build established: Hacker-Gunner 24229 | -1/Command | Phase Generator disabled 24232 | -1/Command | Failed to warp due to unstable space 24299 | -1/Command | Lost 3 parts (2u1w) 24316 | -1/Command | System corruption reached 30% 24521 | -1/Command | Build established: Generator-Skirmisher 24736 | -1/Command | Destroyed 11 combat bots 25108 | -1/Command | Spotted Combat Programmer 25109 | -1/Command | Spotted Combat Programmer 25113 | -1/Command | Spotted M Guard 25116 | -1/Command | Destroyed Combat Programmer 25125 | -1/Command | Spotted M Guard 25159 | -1/Command | Destroyed M Guard 25165 | -1/Command | Destroyed M Guard 25191 | -1/Command | Lost 12 parts (3p3u6w) 25373 | -1/Command | Met MAIN.C 25374 | -1/Command | 0b10 Conduit disabled 25473 | -1/Command | Failed to warp due to unstable space 25479 | -1/Command | Self-destructed Last Messages --------------- 25418_ System corrupted: YOLO Cannon failed to cycle. 25422_ Acquired Adv. Hardlight Generator. 25429_ M-36 Artificer destroyed. 25429_ Adv. Phase Shifter destroyed. 25446_ System corrupted: YOLO Cannon failed to cycle. 25448_ System corrupted: Component data lost. 25450_ Imp. Force Field destroyed. 25450_ Adv. Hardlight Generator destroyed. 25463_ System corrupted: Component data lost. 25468_ System corrupted: Warp Cannon failed to cycle. 25473_ Warp failed due to unstable space. 25474_ System corrupted: YOLO Cannon failed to cycle. 25476_ Adv. Heat Sink destroyed. 25476_ YOLO Cannon destroyed. 25478_ System corrupted: Energy discharge (-226). Map ----- +----------------------------------------------------+ | ?????????????????????????????????????????????????? | | ?????????????????????????????????????????????????? | | ?????????????????????????????????????????????????? | | ?????????????????????????????????????????????????? | | ?????????????????????????????????????????????????? | | ?????????????????????????????????????????????????? | | ?????????????????????????????????????????????????? | | ?????????????????????????????????????????????????? | | ?????????????????????????????????????????????????? | | ?????????????????????????????????????????????????? | | ?????????????????????????????????????????????????? | | ?????????????????????????????????????????????????? | | ?????????????????????????????????????????????????? | | ???????????????????????????????????????????????#?? | | ??????????????????????????????????????????????##?# | | ???????????????????????????????????????????? #?#? | | ??????????????????????????????????????????# ###? | | ????????????????????????????????????????#?? #### | | ???????????????????????????????????????#### ?### | | ???????##########?????????????????????#??## ##?# | | ?????"""" ????????????????????###?## #?## | | ?????"" ?????????????????????##### #### | | ?????"" #######################??# #?## | | ?????"" #### #?#? | | ?????"" [ #### #?## | | ????"" MMM @ =% #?## #### | | ???"" ################### ""#### ##?# | | ???" ?????????????????## # ## #### | | ??? ???????????????????# # #""##### | | ??? "???????????????????# # " ### | | ???? ?????????????????#### ##" ##" | | ???? ?????????????????#### | | ???? ???????????????????#?# | | ????? " " " ??????????????????#### | | ??????" " " ???????????????????#??# | | ??????? " """??????????????????????# | | ????????? ???????????????????????## p #"" ### | | ?????????????????????????????????#?###### # ### | | ????????????????????????????????######?########### | | ??????????????????????????????????#?####### #### | | ????????????????????????????????#####?##??# #### | | ????????????????????????????????##?######## ?### | | ??????????????????????????????????#?#####?# #### | | ???????????????????????????????????#?#?##?# #### | | ????????????????????????????????????##??### #?## | | ????????????????????????????????????######? #?## | | ??????????????????????????????????#######?# ????## | | ???????????????????????????????????##?##### ?### | | ???????????????????????????????????#####?#?? #### | | ?????????????????????????????????????###??# ? #### | +----------------------------------------------------+ Best States ------------- Heat Dissipation 142 Coolant Potential 100 Energy Generation 119 Energy Capacity 1050 Matter Stores 300 Matter Capacity 300 Sight Range 24 Robot Scan Range 15 Terrain Scan Range 24 Terrain Scan Density 210 ECM Strength 2 Jamming Range 16 Additional Mass Support 20 Armor Coverage 1650 Resistance: TH 30 Phase Shifting 15 Evasion (%) 70 Targeting Accuracy 8 Target Analysis 8 Recoil Reduction 11 Particle Charging 25 Kinecelleration 40 Salvage Targeting 1 Offensive Hacking 39 Defensive Hacking 14 Item Schematics ----------------- None Robot Schematics ------------------ None Fabricated ------------ Nothing Repaired ---------- Nothing Alien Tech Used ----------------- Integrated Dissipator Core Reset Matrix Core Expander Transdimensional Reconstructor Achievements -------------- Meet Your Maker Challenges ------------ None Game ------ Seed TerrorPersonalBay Manual? 0 Play Time 07:12:24 Cumulative 159.7 hours Start 2025.10.20 @ 16:41:55 End 2025.10.21 @ 19:12:00 Sessions 9 Manual Loads 0 Difficulty Rogue Special Mode None Game No. 76 Rogue 71 Adventurer 5 Explorer 0 Win Type - Total 2 Types 2/0/0/0/0/0/0/0/0/0 Lore% 58 Gallery% 63 Achievement% 57 Wizard Run 0 Options --------- Layout 1 ASCII 0 Keyboard 0 Movement Numpad Keybinds 0 Fullscreen 1 Font 24/Smallcaps Map View 50x35 Zoom Use 0% Tactical HUD 1 Map Filters NONE Filters NONE Steam 1 RUN: f77ddb78-986c-4e27-9911-deacb8941f10